fUST/lending_fUST_20240621
["ID","MTS","AMOUNT","RATE_DAILY","PERIOD"]
[330004593,1718921258014,-602.99,0.00054794,120]
[330004594,1718921258035,-581.84,0.00054794,120]
[330004595,1718921258060,-12099.82,0.00054794,120]
[330004596,1718921258083,-786.73,0.00054794,120]
[330004597,1718921258103,-1000.0,0.00054794,120]
[330004598,1718921258126,-824.23,0.00054794,120]
[330004599,1718921258147,-3494.84,0.00054794,120]
[330004600,1718921258169,-500.0,0.00054794,120]
[330004601,1718921258189,-500.0,0.00054794,120]
[330004602,1718921258209,-649.26,0.00054794,120]
[330004603,1718921258229,-500.0,0.00054794,120]
[330004604,1718921258250,-500.0,0.00054794,120]
[330004605,1718921258270,-500.0,0.00054794,120]
[330004606,1718921258291,-500.0,0.00054794,120]
[330004607,1718921258313,-500.0,0.00054794,120]
[330004608,1718921258333,-663.52,0.00054794,120]
[330004609,1718921258356,-500.0,0.00054794,120]
[330004610,1718921258378,-566.11,0.00054794,120]
[330004611,1718921258399,-500.0,0.00054794,120]
[330004612,1718921258420,-500.0,0.00054794,120]
[330004613,1718921258505,-7635.98,0.00054794,120]
[330004614,1718921258531,-7635.98,0.00054794,120]
[330004615,1718921258557,-7635.98,0.00054794,120]
[330004616,1718921258580,-7635.98,0.00054794,120]
[330004617,1718921258604,-7635.98,0.00054794,120]
[330004618,1718921258628,-7635.98,0.00054794,120]
[330004619,1718921258653,-82.55523068,0.00054794,120]
[330004700,1718921438425,-238.354229,0.00045348,2]
[330004701,1718921438435,-153.0,0.00052007,7]
[330004703,1718921438445,-153.0,0.00052007,7]
[330004705,1718921438454,-514.2240717,0.00052694,4]
[330004707,1718921438463,-500.0,0.00053794,120]
[330004708,1718921438472,-402.77072534,0.000543,120]
[330004709,1718921438627,-6086.93207637,0.000543,120]
[330004715,1718921442578,-2376.29719829,0.000543,120]
[330004716,1718921442589,-241.70728816,0.00054694,2]
[330004717,1718921442600,-160.0,0.000547,50]
[330004718,1718921442610,-155.38523359,0.00054783,4]
[330004719,1718921442619,-1004.48,0.00054793,120]
[330004720,1718921442628,-221.14954495,0.00054793,120]
[330004721,1718921442638,-211.36576766,0.00054794,61]
[330004722,1718921442647,-1280.74,0.00054794,120]
[330004724,1718921442656,-500.0,0.00054794,120]
[330004726,1718921442666,-500.0,0.00054794,120]
[330004728,1718921442675,-670.21,0.00054794,120]
[330004730,1718921442684,-346.41004582,0.00054794,120]
[330004732,1718921442696,-500.0,0.00054794,120]
[330004733,1718921442706,-1318.85,0.00054794,120]
[330004734,1718921442717,-442.05198302,0.00054794,120]
[330004735,1718921442727,-500.0,0.00054794,120]
[330004736,1718921442737,-1319.76,0.00054794,120]
[330004737,1718921442747,-500.0,0.00054794,120]
[330004738,1718921442756,-500.0,0.00054794,120]
[330004739,1718921442766,-500.0,0.00054794,120]
[330004740,1718921442775,-500.0,0.00054794,120]
[330004741,1718921442785,-500.0,0.00054794,120]
[330004742,1718921442795,-500.0,0.00054794,120]
[330004743,1718921442804,-1689.54,0.00054794,120]
[330004744,1718921442818,-640.71,0.00054794,120]
[330004745,1718921442838,-6558.30612899,0.00054794,120]
[330004746,1718921442887,-11636.92387101,0.00054794,120]
[330004747,1718921442896,-501.15692702,0.00054794,120]
[330004748,1718921442905,-1466.65,0.00054794,120]
[330004749,1718921442914,-500.0,0.00054794,120]
[330004750,1718921442923,-1363.288748,0.00054794,14]
[330004751,1718921442933,-500.0,0.00054794,120]
[330004752,1718921442943,-500.0,0.00054794,120]
[330004753,1718921442952,-1363.288748,0.00054794,14]
[330004754,1718921442962,-500.0,0.00054794,120]
[330004755,1718921442971,-500.0,0.00054794,120]
[330004757,1718921442980,-500.0,0.00054794,120]
[330004758,1718921442989,-1363.288748,0.00054794,14]
[330004759,1718921442998,-1363.288748,0.00054794,14]
[330004760,1718921443007,-202.4050289,0.00054794,120]
[330004761,1718921443016,-251.67099378,0.00054794,120]
[330004762,1718921443025,-500.0,0.00054794,120]
[330004763,1718921443034,-500.0,0.00054794,120]
[330004764,1718921443044,-504.49477912,0.00054794,120]
[330004765,1718921443053,-500.0,0.00054794,120]
[330004766,1718921443062,-1578.55,0.00054794,120]
[330004767,1718921443072,-151.0,0.00054794,14]
[330004768,1718921443081,-151.0,0.00054794,14]
[330004769,1718921443090,-500.0,0.00054794,120]
[330004770,1718921443100,-10839.60352909,0.00054794,120]
[330004771,1718921443113,-44191.92647091,0.00054794,120]
[330004772,1718921443122,-500.0,0.00054794,120]
[330004773,1718921443132,-1582.07,0.00054794,120]
[330004775,1718921443141,-500.0,0.00054794,120]
[330004776,1718921443150,-2811.48,0.00054794,120]
[330004777,1718921443160,-500.0,0.00054794,120]
[330004778,1718921443244,-500.0,0.00054794,120]
[330004779,1718921443253,-653.27,0.00054794,120]
[330004781,1718921443262,-267.58358163,0.00054794,120]
[330004782,1718921443272,-1125.0,0.00054794,120]
[330004783,1718921443282,-1248.65636653,0.00054794,120]
[330004784,1718921443318,-164.27,0.00054784,3]
[330004785,1718921443327,-417.54363347,0.00054794,120]
[330004786,1718921443337,-591.25,0.00054794,120]
[330004787,1718921443346,-500.0,0.00054794,120]
[330004788,1718921443355,-4023.6,0.00054794,21]
[330004789,1718921443364,-151.0,0.00054794,14]
[330004790,1718921443373,-151.0,0.00054794,14]
[330004791,1718921443383,-500.0,0.00054794,120]
[330004792,1718921443392,-510.22445721,0.00054794,120]
[330004793,1718921443401,-404.32820183,0.00054794,120]
[330004794,1718921443410,-223.684593,0.00054794,14]
[330004795,1718921443419,-500.0,0.00054794,60]
[330004796,1718921443429,-500.0,0.00054794,120]
[330004797,1718921443438,-8263.02,0.00054794,120]
[330004798,1718921443447,-500.0,0.00054794,120]
[330004799,1718921443456,-669.25,0.00054794,120]
[330004800,1718921443465,-151.0,0.00054794,14]
[330004801,1718921443475,-151.0,0.00054794,14]
[330004802,1718921443484,-500.0,0.00054794,120]
[330004803,1718921443493,-1022.96,0.00054794,120]
[330004804,1718921443503,-500.0,0.00054794,120]
[330004805,1718921443512,-500.0,0.00054794,120]
[330004806,1718921443521,-501.59,0.00054794,120]
[330004807,1718921443531,-461.46330532,0.00054794,120]
[330004808,1718921443540,-172.93748378,0.00054794,120]
[330004809,1718921443550,-500.0,0.00054794,120]
[330004810,1718921443559,-500.0,0.00054794,120]
[330004811,1718921443568,-500.0,0.00054794,120]
[330004812,1718921443577,-887.88,0.00054794,120]
[330004813,1718921443587,-2476.7,0.00054794,120]
[330004814,1718921443596,-7236.48,0.00054794,120]
[330004815,1718921443605,-500.0,0.00054794,120]
[330004816,1718921443615,-500.0,0.00054794,120]
[330004817,1718921443625,-1193.92,0.00054794,120]
[330004818,1718921443634,-500.0,0.00054794,120]
[330004819,1718921443644,-548.17628376,0.00054794,120]
[330004820,1718921443653,-500.0,0.00054794,120]
[330004821,1718921443663,-160.82707183,0.00054794,120]
[330004822,1718921443672,-500.0,0.00054794,120]
[330004823,1718921443681,-906.2,0.00054794,120]
[330004824,1718921443690,-500.0,0.00054794,120]
[330004825,1718921443700,-500.0,0.00054794,120]
[330004826,1718921443709,-500.0,0.00054794,120]
[330004827,1718921443719,-2352.0,0.00054794,120]
[330004828,1718921443728,-504.5957648,0.00054794,120]
[330004829,1718921443737,-500.0,0.00054794,120]
[330004830,1718921443747,-500.0,0.00054794,90]
[330004831,1718921443757,-501.55451825,0.00054794,120]
[330004832,1718921443767,-24020.65,0.00054794,120]
[330004833,1718921443776,-500.0,0.00054794,120]
[330004834,1718921443785,-593.69376672,0.00054794,120]
[330004835,1718921443794,-2168.93,0.00054794,120]
[330004836,1718921443804,-8252.42,0.00054794,120]
[330004837,1718921443814,-500.0,0.00054794,120]
[330004838,1718921443828,-186.08380489,0.00054794,120]
[330004839,1718921443845,-1847.72,0.00054794,120]
[330004840,1718921443863,-500.0,0.00054794,120]
[330004841,1718921443877,-500.0,0.00054794,120]
[330004842,1718921443894,-500.48,0.00054794,120]
[330004843,1718921443909,-772.74,0.00054794,120]
[330004844,1718921443924,-500.0,0.00054794,120]
[330004845,1718921443942,-500.0,0.00054794,120]
[330004846,1718921443957,-500.0,0.00054794,120]
[330004847,1718921443972,-890.32,0.00054794,120]
[330004848,1718921443988,-213.62269834,0.00054794,20]
[330004849,1718921444002,-753.94,0.00054794,120]
[330004850,1718921444013,-1107.37,0.00054794,120]
[330004851,1718921444027,-500.0,0.00054794,120]
[330004852,1718921444041,-500.0,0.00054794,120]
[330004853,1718921444055,-542.43,0.00054794,120]
[330004854,1718921444071,-1316.27,0.00054794,120]
[330004855,1718921444087,-500.0,0.00054794,120]
[330004856,1718921444099,-500.0,0.00054794,120]
[330004857,1718921444110,-500.0,0.00054794,120]
[330004858,1718921444125,-11595.66,0.00054794,120]
[330004859,1718921444141,-500.0,0.00054794,120]
[330004860,1718921444153,-500.0,0.00054794,120]
[330004861,1718921444167,-780.58,0.00054794,120]
[330004862,1718921444181,-779.1,0.00054794,120]
[330004863,1718921444193,-500.0,0.00054794,120]
[330004864,1718921444206,-2551.71,0.00054794,120]
[330004865,1718921444219,-500.0,0.00054794,120]
[330004866,1718921444232,-1425.82,0.00054794,120]
[330004867,1718921444244,-500.0,0.00054794,120]
[330004868,1718921444258,-500.0,0.00054794,120]
[330004869,1718921444271,-503.93,0.00054794,120]
[330004870,1718921444284,-500.0,0.00054794,120]
[330004871,1718921444296,-500.0,0.00054794,120]
[330004872,1718921444309,-500.0,0.00054794,120]
[330004873,1718921444321,-577.87,0.00054794,120]
[330004874,1718921444333,-500.0,0.00054794,120]
[330004875,1718921444346,-5785.52,0.00054794,120]
[330004876,1718921444359,-500.0,0.00054794,120]
[330004877,1718921444371,-500.0,0.00054794,120]
[330004878,1718921444384,-500.0,0.00054794,120]
[330004879,1718921444396,-500.0,0.00054794,120]
[330004880,1718921444408,-892.2,0.00054794,120]
[330004881,1718921444420,-1883.81,0.00054794,120]
[330004882,1718921444432,-500.0,0.00054794,120]
[330004883,1718921444444,-500.0,0.00054794,120]
[330004884,1718921444457,-500.0,0.00054794,120]
[330004885,1718921444469,-5723.54,0.00054794,120]
[330004886,1718921444481,-5723.54,0.00054794,120]
[330004887,1718921444494,-677.27162062,0.00054794,120]
[330004888,1718921444782,-5046.26837938,0.00054794,120]
[330004889,1718921444793,-5093.9302504,0.00054794,120]
[330004890,1718921444805,-629.6097496,0.00054794,120]
[330004891,1718921444815,-5723.54,0.00054794,120]
[330004892,1718921444829,-3292.1302504,0.00054794,120]
[330004893,1718921445494,-161.65378975,0.00054794,120]
[330004894,1718921445506,-2269.75595985,0.00054794,120]
[330004895,1718921445516,-5723.54,0.00054794,120]
[330004896,1718921445525,-5723.54,0.00054794,120]
[330004898,1718921445536,-1526.74115636,0.00054794,120]
[330004899,1718921445548,-302.61772616,0.00054794,120]
[330004933,1718921446421,-1180.72672569,0.00054794,120]
[330004934,1718921446433,-2424.3087925,0.00054794,120]
[330004935,1718921446446,-289.14559929,0.00054794,120]
[330004936,1718921446457,-1046.56248624,0.00054794,120]
[330004937,1718921446468,-4676.97751376,0.00054794,120]
[330004938,1718921446478,-5723.54,0.00054794,120]
[330004939,1718921446488,-5723.54,0.00054794,120]
[330004940,1718921446497,-5723.54,0.00054794,120]
[330004941,1718921446508,-5723.54,0.00054794,120]
[330004942,1718921446517,-5723.54,0.00054794,120]
[330004943,1718921446528,-500.0,0.00054794,120]
[330004944,1718921446538,-767.38,0.00054794,120]
[330004945,1718921446548,-503.46364103,0.00054794,120]
[330004946,1718921446560,-2329.26,0.00054794,120]
[330004947,1718921446570,-500.0,0.00054794,120]
[330004948,1718921446579,-3349.22,0.00054794,120]
[330004949,1718921446590,-5931.43,0.00054794,120]
[330004950,1718921446601,-500.0,0.00054794,120]
[330004951,1718921446613,-6768.9,0.00054794,120]
[330004952,1718921446623,-500.0,0.00054794,120]
[330004953,1718921446632,-500.0,0.00054794,120]
[330004954,1718921446641,-500.0,0.00054794,2]
[330004955,1718921446651,-500.0,0.00054794,120]
[330004956,1718921446660,-500.0,0.00054794,120]
[330004957,1718921446670,-151.0,0.00054795,120]
[330004958,1718921446680,-151.0,0.00054795,120]
[330004959,1718921446691,-151.0,0.00054795,120]
[330004960,1718921446700,-151.0,0.00054795,120]
[330004961,1718921446710,-151.0,0.00054795,120]
[330004962,1718921446720,-151.0,0.00054795,120]
[330004963,1718921446729,-740.7659,0.000548,30]
[330004964,1718921446738,-1363.288748,0.00054999,120]
[330004965,1718921446748,-1363.288748,0.00054999,120]
[330004966,1718921446757,-5723.54,0.00054999,120]
[330004967,1718921446767,-5723.54,0.00054999,120]
[330004968,1718921446777,-5723.54,0.00054999,120]
[330004969,1718921446786,-17347.08980131,0.00055,120]
[330004974,1718922432184,-187.5,0.00021096,2]
[330004975,1718922432217,-156.9358216,0.00032827,7]
[330004976,1718922432247,-190.47084285,0.00034898,2]
[330004977,1718922432275,-306.0,0.00034998,2]
[330004978,1718922432306,-166.666666,0.0003539,2]
[330004979,1718922432334,-156.9358216,0.00035488,7]
[330004980,1718922432360,-238.3542296,0.0003632,2]
[330004981,1718922432385,-269.0,0.00036945,2]
[330004982,1718922432412,-24900.0,0.00036946,2]
[330004983,1718922432439,-156.9358216,0.00037683,7]
[330004984,1718922432465,-166.666666,0.00037802,2]
[330004985,1718922432491,-215.31645949,0.00038356,15]
[330004986,1718922432516,-166.666666,0.00040214,2]
[330004987,1718922432544,-156.9358216,0.00040496,30]
[330004988,1718922432571,-150.75878594,0.00044657,2]
[330004989,1718922432596,-156.9358216,0.00049557,30]
[330004990,1718922432621,-2042.8067814,0.00050088,28]
[330004991,1718922432641,-903.278062,0.00050188,30]
[330004992,1718922432798,-758.737692,0.00050188,30]
[330004993,1718922432819,-252.912564,0.00050188,30]
[330004994,1718922432839,-602.185376,0.00050188,30]
[330004995,1718922432859,-252.912564,0.00050188,30]
[330004996,1718922432881,-184.6190384,0.00050715,2]
[330004997,1718922432901,-903.278062,0.00050815,30]
[330004998,1718922432921,-758.737692,0.00050815,30]
[330004999,1718922432940,-252.912564,0.00050815,30]
[330005000,1718922432959,-602.185376,0.00050815,30]
[330005001,1718922432982,-252.912564,0.00050815,30]
[330005002,1718922433004,-156.9358216,0.00050911,60]
[330005003,1718922433025,-348.7,0.00051,85]
[330005004,1718922433045,-903.278062,0.00051443,30]
[330005005,1718922433064,-758.737692,0.00051443,30]
[330005006,1718922433085,-252.912564,0.00051443,30]
[330005007,1718922433106,-602.185376,0.00051443,30]
[330005008,1718922433129,-252.912564,0.00051443,30]
[330005009,1718922433155,-155.04838666,0.00051953,60]
[330005010,1718922433178,-903.278062,0.0005207,30]
[330005011,1718922433197,-758.737692,0.0005207,30]
[330005012,1718922433219,-252.912564,0.0005207,30]
[330005013,1718922433238,-602.185376,0.0005207,30]
[330005014,1718922433258,-252.912564,0.0005207,30]
[330005015,1718922433278,-49008.76093011,0.00052499,2]
[330005016,1718922433300,-342.8160478,0.00052694,4]
[330005017,1718922433319,-903.278062,0.00052697,30]
[330005018,1718922433339,-758.737692,0.00052697,30]
[330005019,1718922433358,-252.912564,0.00052697,30]
[330005020,1718922433378,-602.185376,0.00052697,30]
[330005021,1718922433397,-252.912564,0.00052697,30]
[330005022,1718922433418,-292.9,0.00052796,90]
[330005023,1718922433439,-600.0,0.000528,2]
[330005024,1718922433460,-335.2,0.0005313,90]
[330005025,1718922433480,-600.0,0.0005335,2]
[330005026,1718922433500,-335.2,0.00053463,90]
[330005027,1718922433520,-152.0,0.00053463,90]
[330005028,1718922433539,-500.0,0.00053722,120]
[330005029,1718922433562,-1750.0,0.00053722,2]
[330005030,1718922433586,-335.2,0.00053797,90]
[330005031,1718922433608,-152.0,0.00053797,90]
[330005032,1718922433628,-600.0,0.000539,2]
[330005033,1718922433649,-156.9358216,0.0005398,60]
[330005034,1718922433671,-156.9358216,0.0005421,60]
[330005035,1718922433695,-821.36,0.0005429,3]
[330005036,1718922433719,-8866.0,0.000543,120]
[330005037,1718922433740,-9330.09199322,0.0005444,5]
[330005038,1718922433763,-600.0,0.0005445,2]
[330005039,1718922433783,-1000.0,0.00054468,14]
[330005040,1718922433808,-1000.0,0.00054493,14]
[330005041,1718922433828,-1000.0,0.00054535,14]
[330005042,1718922433847,-253.51309053,0.00054581,4]
[330005043,1718922433867,-194.89153029,0.00054581,4]
[330005044,1718922433888,-1009.95915802,0.00054582,14]
[330005045,1718922433909,-1000.0,0.00054606,14]
[330005046,1718922433930,-1000.0,0.00054641,14]
[330005047,1718922433950,-1000.0,0.00054642,14]
[330005048,1718922433970,-474.86784569,0.00054655,14]
[330005049,1718922433989,-2000.0,0.00054694,2]
[330005050,1718922434010,-184.6190384,0.00054694,2]
[330005051,1718922434030,-252.0,0.000547,33]
[330005052,1718922434051,-160.0,0.000547,50]
[330005053,1718922434070,-962.63,0.00054793,120]
[330005054,1718922434089,-160.0,0.00054793,2]
[330005055,1718922434109,-200.0,0.00054793,4]
[330005056,1718922434133,-500.0,0.00054794,120]
[330005057,1718922434155,-488.09603771,0.00054794,120]
[330005058,1718922434193,-500.76740076,0.00054794,7]
[330005059,1718922434218,-349.95728645,0.00054794,120]
[330005060,1718922434239,-500.0,0.00054794,120]
[330005061,1718922434258,-336.85505712,0.00054794,120]
[330005062,1718922434277,-500.0,0.00054794,120]
[330005063,1718922434298,-500.0,0.00054794,120]
[330005064,1718922434320,-500.0,0.00054794,120]
[330005065,1718922434341,-500.0,0.00054794,120]
[330005066,1718922434360,-500.0,0.00054794,120]
[330005067,1718922434380,-500.0,0.00054794,120]
[330005068,1718922434399,-500.0,0.00054794,120]
[330005069,1718922434418,-500.0,0.00054794,120]
[330005070,1718922434438,-500.0,0.00054794,120]
[330005071,1718922434458,-500.0,0.00054794,120]
[330005072,1718922434477,-500.0,0.00054794,120]
[330005073,1718922434498,-321.8354795,0.00054794,120]
[330005074,1718922434519,-680.65,0.00054794,120]
[330005075,1718922434539,-500.0,0.00054794,120]
[330005076,1718922434560,-595.08069586,0.00054794,120]
[330005077,1718922434579,-500.0,0.00054794,120]
[330005078,1718922434598,-500.0,0.00054794,7]
[330005079,1718922434697,-500.0,0.00054794,120]
[330005080,1718922434717,-500.0,0.00054794,120]
[330005081,1718922434736,-173.69033743,0.00054794,120]
[330005082,1718922434757,-500.0,0.00054794,120]
[330005083,1718922434778,-500.0,0.00054794,120]
[330005084,1718922434800,-500.0,0.00054794,120]
[330005085,1718922434820,-500.0,0.00054794,120]
[330005086,1718922434841,-500.0,0.00054794,120]
[330005087,1718922434862,-747.03,0.00054794,120]
[330005088,1718922434885,-500.0,0.00054794,120]
[330005089,1718922434907,-500.0,0.00054794,120]
[330005090,1718922434926,-500.0,0.00054794,120]
[330005091,1718922434945,-500.0,0.00054794,120]
[330005092,1718922434966,-627.76,0.00054794,120]
[330005093,1718922434989,-500.0,0.00054794,4]
[330005094,1718922435011,-614.93,0.00054794,120]
[330005095,1718922435030,-603.44116103,0.00054794,120]
[330005096,1718922435050,-500.0,0.00054794,120]
[330005097,1718922435069,-500.0,0.00054794,120]
[330005098,1718922435089,-252.91423135,0.00054794,120]
[330005099,1718922435109,-1446.0,0.00054794,120]
[330005100,1718922435130,-500.0,0.00054794,120]
[330005101,1718922435151,-500.0,0.00054794,120]
[330005102,1718922435171,-566.86197237,0.00054794,120]
[330005103,1718922435191,-500.0,0.00054794,120]
[330005104,1718922435213,-500.0,0.00054794,120]
[330005105,1718922435235,-500.0,0.00054794,120]
[330005106,1718922435256,-1285.61,0.00054794,120]
[330005107,1718922435277,-1799.15,0.00054794,120]
[330005108,1718922435299,-500.0,0.00054794,120]
[330005109,1718922435322,-1748.91,0.00054794,120]
[330005110,1718922435344,-500.0,0.00054794,120]
[330005111,1718922435366,-500.0,0.00054794,120]
[330005112,1718922435386,-281.4,0.00054794,120]
[330005113,1718922435407,-1265.62,0.00054794,120]
[330005114,1718922435428,-500.0,0.00054794,120]
[330005115,1718922435449,-500.0,0.00054794,120]
[330005116,1718922435470,-636.1466065,0.00054794,120]
[330005117,1718922435493,-500.0,0.00054794,120]
[330005118,1718922435515,-500.0,0.00054794,120]
[330005119,1718922435536,-500.0,0.00054794,120]
[330005120,1718922435557,-1000.0,0.00054794,120]
[330005121,1718922435578,-500.0,0.00054794,120]
[330005122,1718922435600,-500.0,0.00054794,120]
[330005123,1718922435621,-500.0,0.00054794,120]
[330005124,1718922435642,-1321.1,0.00054794,120]
[330005125,1718922435664,-1763.44,0.00054794,120]
[330005126,1718922435685,-500.0,0.00054794,120]
[330005127,1718922435706,-500.0,0.00054794,120]
[330005128,1718922435727,-175.39485277,0.00054794,120]
[330005129,1718922435842,-339.15514723,0.00054794,120]
[330005130,1718922435862,-500.0,0.00054794,120]
[330005131,1718922435882,-500.0,0.00054794,120]
[330005132,1718922435901,-500.0,0.00054794,120]
[330005133,1718922435922,-1421.72,0.00054794,120]
[330005134,1718922435941,-353.20464116,0.00054794,120]
[330005135,1718922435961,-552.46,0.00054794,120]
[330005136,1718922435980,-654.74,0.00054794,120]
[330005137,1718922436000,-276.16,0.00054794,120]
[330005138,1718922436019,-500.0,0.00054794,120]
[330005139,1718922436039,-500.0,0.00054794,120]
[330005140,1718922436059,-500.0,0.00054794,2]
[330005141,1718922436077,-500.0,0.00054794,120]
[330005142,1718922436097,-511.82330992,0.00054794,120]
[330005143,1718922436117,-500.0,0.00054794,120]
[330005144,1718922436142,-505.00040707,0.00054794,120]
[330005145,1718922436162,-572.16711077,0.00054794,120]
[330005146,1718922436183,-510.94581015,0.00054794,120]
[330005147,1718922436201,-500.0,0.00054794,120]
[330005148,1718922436224,-500.0,0.00054794,120]
[330005149,1718922436245,-279.58325739,0.00054794,120]
[330005150,1718922436265,-2635.29,0.00054794,120]
[330005151,1718922436283,-500.0,0.00054794,120]
[330005152,1718922436302,-200.0,0.00054794,7]
[330005153,1718922436321,-500.0,0.00054794,120]
[330005154,1718922436341,-500.0,0.00054794,120]
[330005155,1718922436360,-500.0,0.00054794,120]
[330005156,1718922436379,-500.0,0.00054794,120]
[330005157,1718922436397,-518.95929642,0.00054794,120]
[330005158,1718922436416,-500.0,0.00054794,120]
[330005159,1718922436435,-500.0,0.00054794,20]
[330005160,1718922436453,-868.44,0.00054794,120]
[330005161,1718922436472,-500.0,0.00054794,120]
[330005162,1718922436491,-500.0,0.00054794,120]
[330005163,1718922436510,-500.0,0.00054794,120]
[330005164,1718922436543,-500.0,0.00054794,120]
[330005165,1718922436566,-2445.39,0.00054794,120]
[330005166,1718922436586,-506.25291399,0.00054794,120]
[330005167,1718922436735,-467.5,0.00054794,120]
[330005168,1718922436755,-500.0,0.00054794,2]
[330005169,1718922436779,-500.0,0.00054794,120]
[330005170,1718922436799,-504.90575669,0.00054794,120]
[330005171,1718922436820,-519.83,0.00054794,120]
[330005172,1718922436842,-500.0,0.00054794,120]
[330005173,1718922436862,-500.0,0.00054794,120]
[330005174,1718922436880,-500.0,0.00054794,120]
[330005175,1718922436899,-500.0,0.00054794,120]
[330005176,1718922436919,-500.0,0.00054794,120]
[330005177,1718922436939,-500.0,0.00054794,120]
[330005178,1718922436959,-500.0,0.00054794,120]
[330005179,1718922436977,-500.0,0.00054794,120]
[330005180,1718922436996,-500.0,0.00054794,120]
[330005181,1718922437015,-500.0,0.00054794,120]
[330005182,1718922437034,-587.18470162,0.00054794,120]
[330005183,1718922437054,-500.0,0.00054794,120]
[330005184,1718922437073,-494.025129,0.00054794,120]
[330005185,1718922437092,-504.21619188,0.00054794,120]
[330005186,1718922437112,-500.0,0.00054794,120]
[330005187,1718922437134,-500.0,0.00054794,120]
[330005188,1718922437151,-500.0,0.00054794,120]
[330005189,1718922437171,-500.0,0.00054794,120]
[330005190,1718922437190,-2638.59,0.00054794,60]
[330005191,1718922437211,-746.64,0.00054794,120]
[330005192,1718922437229,-500.0,0.00054794,120]
[330005193,1718922437249,-500.0,0.00054794,120]
[330005194,1718922437268,-757.51,0.00054794,120]
[330005195,1718922437286,-500.0,0.00054794,120]
[330005196,1718922437305,-521.62219814,0.00054794,2]
[330005197,1718922437323,-500.0,0.00054794,120]
[330005198,1718922437342,-500.0,0.00054794,2]
[330005199,1718922437361,-557.6,0.00054794,120]
[330005200,1718922437381,-509.28,0.00054794,120]
[330005201,1718922437399,-500.0,0.00054794,120]
[330005202,1718922437419,-500.0,0.00054794,120]
[330005203,1718922437440,-1328.39,0.00054794,120]
[330005204,1718922437460,-500.0,0.00054794,120]
[330005205,1718922437478,-500.0,0.00054794,120]
[330005206,1718922437496,-500.0,0.00054794,120]
[330005207,1718922437514,-500.0,0.00054794,120]
[330005208,1718922437533,-500.0,0.00054794,120]
[330005209,1718922437553,-500.0,0.00054794,120]
[330005210,1718922437573,-500.0,0.00054794,2]
[330005211,1718922437591,-878.13,0.00054794,120]
[330005212,1718922437610,-500.0,0.00054794,120]
[330005213,1718922437630,-303.43001994,0.00054794,120]
[330005214,1718922437649,-500.0,0.00054794,120]
[330005215,1718922437668,-2207.47,0.00054794,120]
[330005216,1718922437689,-500.0,0.00054794,120]
[330005217,1718922437709,-2626.4,0.00054794,120]
[330005218,1718922437730,-500.0,0.00054794,120]
[330005219,1718922437749,-500.0,0.00054794,120]
[330005220,1718922437768,-500.0,0.00054794,120]
[330005221,1718922437788,-500.0,0.00054794,120]
[330005222,1718922437808,-507.42764687,0.00054794,120]
[330005223,1718922437827,-500.0,0.00054794,120]
[330005224,1718922437846,-500.0,0.00054794,120]
[330005225,1718922437866,-500.0,0.00054794,120]
[330005226,1718922437886,-500.0,0.00054794,120]